bitfinex/quotes_SOLUSD_20240628
["timestamp","ask_amount","ask_price","bid_price","bid_amount"]
[1719590503167,20.0,143.78,143.64,6.9614]
[1719590503358,20.0,143.78,143.64,6.9618]
[1719590503558,40.83,143.78,143.63,8.17359705]
[1719590503779,20.83,143.76,143.63,1.21139705]
[1719590503982,20.83,143.71,143.55,6.9658]
[1719590504162,20.83,143.71,143.56,30.0]
[1719590504364,20.83,143.69,143.56,30.0]
[1719590504581,20.83,143.69,143.57,6.9651]
[1719590504884,20.0,143.7,143.52,6.9672]
[1719590505081,63.0381,143.67,143.51,6.9681]
[1719590505275,63.0381,143.67,143.51,3.00827127]
[1719590505477,20.0,143.66,143.51,3.00827127]
[1719590505783,40.83,143.66,143.51,20.42847127]
[1719590505967,40.83,143.66,143.47,125.0]
[1719590506168,40.83,143.66,143.51,6.9678]
[1719590506370,40.83,143.66,143.5,6.9685]
[1719590506684,65.83,143.66,143.5,6.9685]
[1719590506980,65.83,143.66,143.47,103.00910999]
[1719590506981,20.0,143.66,143.47,3.00910999]
[1719590507181,20.0,143.66,143.49,17.4223]
[1719590507480,20.0,143.66,143.5,6.9685]
[1719590507689,20.0,143.66,143.49,17.4223]
[1719590507992,20.83,143.65,143.51,6.968]
[1719590508194,20.0,143.64,143.54,6.9666]
[1719590508369,20.0,143.66,143.48,17.4232]
[1719590508573,20.0,143.66,143.5,6.9686]
[1719590508780,20.0,143.66,143.5,24.3894]
[1719590508993,20.83,143.65,143.5,24.3894]
[1719590509295,20.0,143.64,143.5,24.3894]
[1719590509596,20.0,143.66,143.51,6.968]
[1719590510196,20.0,143.66,143.52,17.4187]
[1719590510509,18.5981,143.67,143.52,24.3863]
[1719590510875,18.5981,143.67,143.53,6.9671]
[1719590511169,18.5981,143.67,143.53,0.69427021]
[1719590511170,7.26355386,143.66,143.53,0.69427021]
[1719590511498,7.26355386,143.66,143.48,100.0]
[1719590511684,7.26355386,143.66,143.5,6.9682]
[1719590512000,7.26355386,143.66,143.5,24.389]
[1719590512207,28.09355386,143.66,143.5,17.4208]
[1719590512502,40.83,143.65,143.51,6.968]
[1719590512798,20.0,143.65,143.52,24.3856]
[1719590512992,20.0,143.65,143.53,6.9671]
[1719590513170,20.0,143.65,143.52,17.4183]
[1719590513368,20.0,143.66,143.52,17.4183]
[1719590513586,20.0,143.66,143.52,24.3858]
[1719590514086,40.83,143.66,143.52,24.3858]
[1719590514288,20.0,143.66,143.52,17.4183]
[1719590514897,20.0,143.66,143.49,17.4221]
[1719590515072,20.83,143.65,143.51,6.9677]
[1719590515274,20.83,143.65,143.47,3.00910999]
[1719590515472,20.83,143.63,143.48,103.00890026]
[1719590515800,20.83,143.61,143.49,6.9689]
[1719590515978,20.83,143.61,143.5,17.4211]
[1719590516177,20.83,143.61,143.48,3.00890026]
[1719590516384,20.83,143.59,143.49,6.9687]
[1719590516598,20.83,143.59,143.5,6.9685]
[1719590517580,20.0,143.6,143.48,3.00890026]
[1719590517896,120.0,143.64,143.46,0.650531]
[1719590518071,120.0,143.64,143.48,6.9696]
[1719590518278,20.83,143.63,143.48,6.9696]
[1719590518477,20.83,143.61,143.46,0.650531]
[1719590518803,20.83,143.59,143.49,6.9689]
[1719590518999,20.0,143.62,143.5,17.4209]
[1719590519298,20.83,143.63,143.5,17.4209]
[1719590519503,20.83,143.61,143.51,6.9681]
[1719590519702,40.83,143.6,143.5,17.4209]
[1719590519874,20.83,143.6,143.5,17.4209]
[1719590520072,20.83,143.6,143.5,24.3894]
[1719590520297,20.0,143.62,143.5,17.4209]
[1719590520505,20.0,143.62,143.46,100.650531]
[1719590520506,20.83,143.61,143.47,17.4243]
[1719590520692,20.83,143.59,143.49,6.9687]
[1719590521015,20.0,143.64,143.5,6.9684]
[1719590521301,20.0,143.64,143.49,6.9688]
[1719590521499,20.83,143.63,143.51,6.9677]
[1719590521803,20.0,143.64,143.53,6.9671]
[1719590521804,20.0,143.62,143.53,6.9671]
[1719590522106,20.0,143.64,143.54,1.39297873]
[1719590522316,20.0,143.66,143.53,6.9671]
[1719590522606,20.83,143.65,143.54,45.0]
[1719590522899,40.83,143.64,143.54,45.0]
[1719590523101,40.83,143.64,143.54,17.4164]
[1719590523304,25.86426923,143.67,143.55,45.0]
[1719590523491,20.83,143.66,143.56,1.39165993]
[1719590523696,28.08474319,143.66,143.5,44.44]
[1719590523903,28.08474319,143.66,143.47,100.0]
[1719590524125,28.08474319,143.66,143.46,0.650531]
[1719590524423,28.08474319,143.66,143.48,6.9695]
[1719590524424,34.24369663,143.66,143.48,6.9695]
[1719590524592,20.83,143.64,143.48,100.0]
[1719590524794,20.83,143.62,143.52,6.9676]
[1719590524998,40.83,143.61,143.46,0.650531]
[1719590525308,20.83,143.61,143.46,0.650531]
[1719590525496,7.25474319,143.66,143.46,0.650531]
[1719590525497,40.83,143.6,143.46,0.650531]
[1719590525815,20.0,143.6,143.52,17.4186]
[1719590526019,7.25474319,143.66,143.47,100.0]
[1719590526020,20.83,143.62,143.54,17.416]
[1719590526195,20.83,143.62,143.55,45.0]
[1719590526392,20.83,143.64,143.55,45.0]
[1719590526596,20.83,143.61,143.55,45.0]
[1719590526786,14.78644319,143.66,143.55,45.0]
[1719590526991,28.3617,143.66,143.55,45.0]
[1719590527400,20.83,143.64,143.55,45.0]
[1719590527604,20.83,143.64,143.46,100.650531]
[1719590527605,20.83,143.64,143.46,0.650531]
[1719590527815,39.9847,143.64,143.46,0.650531]
[1719590528133,20.83,143.59,143.46,0.650531]
[1719590528499,20.83,143.57,143.46,0.650531]
[1719590528810,20.83,143.55,143.46,0.650531]
[1719590529118,20.83,143.53,143.46,0.650531]
[1719590529528,40.83,143.54,143.46,0.650531]
[1719590529687,20.0,143.54,143.46,0.650531]
[1719590529891,342.4650537,143.64,143.46,0.650531]
[1719590529892,20.0,143.58,143.46,0.650531]
[1719590530113,342.4650537,143.64,143.46,0.650531]
[1719590530114,20.0,143.63,143.48,17.4234]
[1719590530295,120.0,143.63,143.46,0.650531]
[1719590530499,20.83,143.62,143.46,7.620931]
[1719590530818,19.1547,143.64,143.52,6.9673]
[1719590531019,19.1547,143.64,143.51,24.3878]
[1719590531247,19.1547,143.64,143.5,100.0]
[1719590531522,7.5317,143.66,143.52,100.0]
[1719590531721,7.5317,143.66,143.55,17.4149]
[1719590532097,7.5317,143.66,143.56,6.9656]
[1719590532299,7.5317,143.66,143.5,100.0]
[1719590532300,7.26104013,143.71,143.57,100.0]
[1719590532500,28.3945,143.73,143.63,6.9622]
[1719590532717,28.3945,143.73,143.57,100.0]
[1719590532919,28.3945,143.73,143.61,6.9632]
[1719590533119,28.3945,143.73,143.57,100.0]
[1719590533120,7.5645,143.73,143.57,100.0]
[1719590533300,7.5645,143.73,143.53,69.98]
[1719590533301,7.5645,143.73,143.59,100.0]
[1719590533506,20.83,143.76,143.61,100.0]
[1719590533724,20.83,143.76,143.62,6.9627]
[1719590533930,20.83,143.76,143.57,100.0]
[1719590534109,20.83,143.76,143.57,3.00701407]
[1719590534110,20.83,143.74,143.57,3.00701407]
[1719590534630,20.83,143.74,143.51,125.0]
[1719590534631,20.83,143.72,143.54,17.416]
[1719590534805,65.81,143.72,143.54,17.416]
[1719590535002,65.81,143.72,143.51,117.4198]
[1719590535003,20.83,143.7,143.51,117.4198]
[1719590535208,20.83,143.68,143.56,6.9656]
[1719590535509,40.83,143.67,143.52,9.97516166]
[1719590535711,20.83,143.65,143.52,20.42676166]
[1719590535910,20.83,143.63,143.52,27.39436166]
[1719590536114,40.83,143.62,143.52,3.00806166]
[1719590536346,20.83,143.62,143.52,3.00806166]
[1719590536830,20.83,143.62,143.52,9.97556166]
[1719590537048,20.83,143.63,143.52,3.00806166]
[1719590537234,20.0,143.64,143.52,3.00806166]
[1719590537235,20.83,143.61,143.52,3.00806166]
[1719590537540,83.1551,143.64,143.52,3.00806166]
[1719590537541,20.83,143.59,143.52,3.00806166]
[1719590537928,6.15895344,143.63,143.52,3.00806166]
[1719590537929,20.83,143.57,143.52,3.00806166]
[1719590538114,40.83,143.56,143.52,3.00806166]
[1719590538305,20.83,143.56,143.52,3.00806166]
[1719590538506,20.0,143.55,143.46,7.621031]
[1719590538815,20.0,143.55,143.46,0.650531]
[1719590539004,100.0,143.62,143.46,0.650531]
[1719590539005,20.0,143.61,143.46,0.650531]
[1719590539739,65.81,143.6,143.46,0.650531]
[1719590539920,20.83,143.58,143.46,0.650531]
[1719590540124,20.0,143.57,143.46,0.650531]
[1719590540433,20.0,143.59,143.46,0.650531]
[1719590540611,20.83,143.58,143.46,0.650531]
[1719590540815,20.83,143.56,143.46,0.650531]
[1719590541012,44.98,143.6,143.46,0.650531]
[1719590541013,20.83,143.54,143.46,0.650531]
[1719590541309,20.83,143.52,143.46,0.650531]
[1719590541634,20.0,143.51,143.46,0.650531]
[1719590541935,20.0,143.52,143.46,0.650531]
[1719590542104,20.83,143.51,143.46,0.650531]
[1719590542305,20.0,143.52,143.46,0.650531]
[1719590542636,7.1439,143.55,143.46,0.650531]
[1719590542836,7.1439,143.55,143.46,18.076131]
[1719590543030,7.4207,143.61,143.48,6.9692]
[1719590543228,7.26422249,143.57,143.46,0.650531]
[1719590543407,7.4207,143.61,143.46,0.650531]
[1719590543605,20.83,143.6,143.46,0.650531]
[1719590543940,7.4207,143.61,143.47,3.00910999]
[1719590543941,7.26061357,143.58,143.47,3.00910999]
[1719590544110,7.4207,143.61,143.47,3.00910999]
[1719590544308,14.68464754,143.61,143.46,0.650531]
[1719590544700,20.83,143.6,143.46,0.650531]
[1719590544901,20.83,143.58,143.46,0.650531]
[1719590545134,23.01917851,143.59,143.46,0.650531]
[1719590545135,20.83,143.56,143.46,0.650531]
[1719590545337,20.83,143.54,143.46,0.650531]
[1719590545502,20.83,143.52,143.46,0.650531]
[1719590545705,40.83,143.51,143.46,0.650531]
[1719590546728,120.83,143.49,143.34,1.21357484]
[1719590546934,120.83,143.49,143.32,0.8606346]
[1719590546935,20.83,143.47,143.32,0.8606346]
[1719590547133,20.83,143.45,143.32,0.8606346]
[1719590547334,20.83,143.43,143.32,0.8606346]
[1719590547631,20.0,143.42,143.32,0.8606346]
[1719590547831,20.0,143.42,143.33,17.4411]
[1719590548047,20.0,143.44,143.32,0.8606346]
[1719590548957,20.0,143.44,143.32,7.8376346]
[1719590549134,20.0,143.47,143.32,0.8606346]
[1719590549453,26.70784233,143.47,143.32,0.8606346]
[1719590549835,27.53784233,143.46,143.32,0.8606346]
[1719590550057,20.83,143.44,143.32,0.8606346]
[1719590550555,47.53784233,143.43,143.32,0.8606346]
[1719590550758,147.53784233,143.43,143.32,0.8606346]
[1719590551266,20.83,143.4,143.32,0.8606346]
[1719590551439,20.83,143.38,143.32,0.8606346]
[1719590551764,20.0,143.37,143.32,0.8606346]
[1719590552341,261.5142,143.38,143.32,0.8606346]
[1719590552564,100.0,143.32,143.19,0.04138157]
[1719590552868,20.0,143.31,143.19,0.04138157]
[1719590553037,20.83,143.3,143.19,0.04138157]
[1719590553436,20.83,143.28,143.19,0.04138157]
[1719590553638,8.7397,143.37,143.19,0.04138157]
[1719590553866,20.0,143.36,143.19,0.04138157]
[1719590554160,20.83,143.33,143.19,0.04138157]
[1719590554362,65.81,143.31,143.19,0.04138157]
[1719590554664,40.83,143.3,143.19,0.04138157]
[1719590554836,20.0,143.3,143.19,0.04138157]
[1719590555240,20.0,143.35,143.19,0.04138157]
[1719590555452,20.0,143.35,143.21,6.9825]
[1719590555662,20.0,143.35,143.19,0.04138157]
[1719590555961,20.83,143.32,143.19,0.04138157]
[1719590556268,20.0,143.31,143.19,0.04138157]
[1719590556468,120.0,143.35,143.19,0.04138157]
[1719590556469,100.0,143.32,143.19,0.04138157]
[1719590556758,20.0,143.31,143.19,0.04138157]
[1719590557061,20.83,143.3,143.19,0.04138157]
[1719590557267,65.81,143.28,143.19,0.04138157]
[1719590557574,20.0,143.27,143.19,0.04138157]
[1719590558060,20.83,143.3,143.19,0.04138157]
[1719590558237,20.83,143.28,143.19,0.04138157]
[1719590558560,20.83,143.26,143.19,0.04138157]
[1719590558756,40.83,143.25,143.19,0.04138157]
[1719590558953,20.0,143.24,143.19,0.04138157]
[1719590559153,40.83,143.27,143.19,0.04138157]
[1719590559469,20.0,143.27,143.19,0.04138157]
[1719590559648,20.0,143.31,143.19,0.04138157]
[1719590560043,20.83,143.3,143.19,0.04138157]
[1719590560243,120.83,143.3,143.19,0.04138157]
[1719590560553,20.83,143.28,143.19,0.04138157]
[1719590560759,20.83,143.26,143.19,0.04138157]
[1719590560946,100.0,143.3,143.19,0.04138157]
[1719590560947,40.83,143.25,143.19,0.04138157]
[1719590562850,140.83,143.25,143.19,0.04138157]
[1719590563166,20.83,143.23,143.19,0.04138157]
[1719590563354,20.83,143.21,143.19,0.04138157]
[1719590563551,20.0,143.2,143.19,0.04138157]
[1719590564553,20.83,143.29,143.19,0.04138157]
[1719590564889,20.83,143.28,143.19,0.04138157]
[1719590565059,28.102277,143.26,143.19,0.04138157]
[1719590565268,52.2521,143.32,143.19,0.04138157]
[1719590565568,20.83,143.42,143.21,144.98]
[1719590565754,20.83,143.42,143.21,51.9622]
[1719590565950,65.81,143.39,143.19,7.59268157]
[1719590566343,65.81,143.39,143.19,14.57598157]
[1719590566549,65.81,143.39,143.19,7.59268157]
[1719590566948,20.83,143.37,143.19,7.59268157]
[1719590567146,7.2686374,143.38,143.23,100.0]
[1719590567378,44.98,143.46,143.24,23.0139417]
[1719590567674,7.26555022,143.44,143.26,6.9802]
[1719590567965,7.26555022,143.44,143.25,6.9807]
[1719590568261,20.83,143.43,143.24,23.0139417]
[1719590568452,20.83,143.43,143.25,103.01373131]
[1719590568652,20.83,143.43,143.26,23.7856187]
[1719590568855,20.83,143.43,143.26,23.01352094]
[1719590569058,120.83,143.43,143.26,23.01352094]
[1719590569257,20.83,143.41,143.25,20.0]
[1719590569658,20.83,143.41,143.25,26.9807]
[1719590569861,20.83,143.41,143.23,6.9814]
[1719590570075,20.83,143.41,143.22,17.4544]
[1719590570278,20.83,143.41,143.2,125.0]
[1719590570455,20.83,143.39,143.21,17.456]
[1719590570772,20.83,143.37,143.21,24.4382]
[1719590570958,20.83,143.35,143.21,24.4386]
[1719590571153,20.83,143.33,143.21,24.4386]
[1719590571355,40.83,143.32,143.21,24.4386]
[1719590571557,40.83,143.32,143.21,17.456]
[1719590572580,40.83,143.32,143.19,0.04138157]
[1719590574880,40.83,143.32,143.19,7.02478157]
[1719590575052,40.83,143.32,143.19,0.04138157]
[1719590575254,40.83,143.32,143.2,24.4399]
[1719590575453,40.83,143.32,143.19,7.02498157]
[1719590575876,40.83,143.32,143.19,0.04138157]
[1719590576061,20.83,143.37,143.2,7.003]
[1719590576272,20.83,143.37,143.21,23.01457307]
[1719590576579,20.83,143.37,143.23,17.4534]
[1719590577167,20.83,143.42,143.23,17.4534]
[1719590577371,20.83,143.42,143.25,17.4514]
[1719590577660,20.83,143.42,143.21,123.01457307]
[1719590577889,20.83,143.42,143.22,3.01436259]
[1719590578262,20.83,143.42,143.24,17.4527]
[1719590578463,20.83,143.42,143.25,20.0]
[1719590578663,59.95732295,143.43,143.26,6.9802]
[1719590578664,20.83,143.4,143.26,6.9802]
[1719590578858,20.83,143.4,143.27,13.9827]
[1719590579164,20.83,143.42,143.29,6.9787]
[1719590579370,20.83,143.42,143.28,17.4479]
[1719590579982,20.83,143.42,143.29,6.9785]
[1719590580189,25.77128917,143.45,143.33,6.9767]
[1719590580190,28.09038917,143.45,143.33,6.9767]
[1719590580390,20.83,143.45,143.34,17.4405]
[1719590580784,20.83,143.45,143.3,3.01267976]
[1719590580785,20.83,143.45,143.32,6.9772]
[1719590580976,20.83,143.45,143.3,9.99067976]
[1719590581171,20.83,143.48,143.3,3.01267976]
[1719590581377,20.83,143.48,143.29,100.0]
[1719590581577,20.83,143.48,143.31,3.01246954]
[1719590581880,20.83,143.48,143.35,6.9755]
[1719590582084,20.83,143.48,143.38,17.4356]
[1719590582285,7.5981,143.52,143.39,8.36792954]
[1719590582477,52.4115,143.58,143.41,17.4319]
[1719590582676,7.25603655,143.56,143.38,6.9743]
[1719590582900,7.25603655,143.56,143.38,24.4099]
[1719590583075,7.25603655,143.56,143.37,7.319]
[1719590583076,7.25603655,143.56,143.39,1.39423138]
[1719590583271,20.83,143.53,143.4,1.39416364]
[1719590583479,7.25603655,143.56,143.4,1.39416364]
[1719590583480,40.83,143.52,143.4,1.39416364]
[1719590583808,7.25603655,143.56,143.38,6.9743]
[1719590584099,7.25603655,143.56,143.41,17.4313]
[1719590584294,20.83,143.57,143.41,17.4313]
[1719590584491,20.83,143.55,143.37,7.319]
[1719590584700,20.83,143.52,143.32,17.4429]
[1719590584872,20.83,143.52,143.33,20.0]
[1719590585501,20.83,143.5,143.33,26.9768]
[1719590585793,20.83,143.48,143.31,7.6936]
[1719590586004,20.83,143.46,143.31,14.6714]
[1719590586168,20.0,143.45,143.31,14.6714]
[1719590586368,20.0,143.45,143.32,6.9773]
[1719590586878,20.0,143.45,143.33,17.4417]
[1719590587088,20.0,143.48,143.33,17.4417]
[1719590587290,40.83,143.48,143.34,6.9762]
[1719590587476,40.83,143.48,143.33,17.4417]
[1719590587477,40.83,143.48,143.33,24.4184]
[1719590588200,40.83,143.48,143.33,17.4417]
[1719590588575,40.83,143.48,143.34,6.9763]
[1719590589693,40.83,143.48,143.35,6.9759]
[1719590589999,40.83,143.48,143.34,6.9763]
[1719590590190,18.8933,143.49,143.36,17.438]
[1719590590390,25.50158542,143.56,143.34,34.8802]
[1719590590580,25.50158542,143.56,143.4,17.4334]
[1719590590794,25.50158542,143.56,143.43,17.4298]
[1719590590974,25.50158542,143.56,143.37,145.0]
[1719590591174,18.249,143.56,143.42,24.4032]
[1719590591376,39.079,143.56,143.42,17.4311]
[1719590591599,39.079,143.56,143.4,6.9733]
[1719590592189,39.079,143.56,143.39,24.4078]
[1719590592403,39.079,143.56,143.4,20.0]
[1719590592571,20.83,143.54,143.4,20.0]
[1719590592772,14.6869603,143.58,143.41,17.4322]
[1719590593000,20.83,143.57,143.4,20.0]
[1719590593177,120.83,143.57,143.39,20.0]
[1719590593378,20.83,143.57,143.39,20.0]
[1719590593681,20.83,143.55,143.38,6.9744]
[1719590596100,40.83,143.54,143.41,17.4318]
[1719590596283,20.83,143.54,143.41,17.4318]
[1719590596482,20.0,143.53,143.41,17.4318]
[1719590596686,20.0,143.53,143.43,6.9719]
[1719590596890,7.4315,143.58,143.45,7.003]
[1719590597102,20.83,143.56,143.39,9.98438883]
[1719590597281,20.83,143.54,143.39,3.01078883]
[1719590597475,20.83,143.52,143.39,3.01078883]
[1719590597788,20.0,143.53,143.39,3.01078883]
[1719590597789,20.0,143.51,143.39,3.01078883]
[1719590598003,20.0,143.53,143.4,7.003]
[1719590598296,20.83,143.52,143.4,31.4098]
[1719590598497,20.0,143.51,143.4,31.4098]
[1719590599004,20.0,143.51,143.41,13.9756]
[1719590599300,20.83,143.56,143.42,13.9754]
[1719590599480,20.83,143.54,143.42,13.9754]
[1719590599799,7.4315,143.58,143.42,100.0]
[1719590600007,7.4315,143.58,143.44,13.9744]
[1719590600183,20.83,143.57,143.44,13.9744]
[1719590600377,20.83,143.57,143.45,0.41219248]
[1719590600777,20.83,143.57,143.43,20.0]
[1719590601106,20.83,143.57,143.44,7.003]
[1719590601285,7.4315,143.58,143.43,100.0]
[1719590601286,40.83,143.56,143.43,106.9716]
[1719590601484,40.83,143.56,143.43,117.4296]
[1719590601485,20.0,143.56,143.43,117.4296]
[1719590601701,40.83,143.57,143.44,3.00973933]
[1719590602107,40.83,143.57,143.45,7.003]
[1719590602490,20.0,143.57,143.46,1.39189345]
[1719590602803,20.0,143.57,143.45,7.003]
[1719590602988,7.4315,143.58,143.47,6.9699]
[1719590603187,7.4315,143.58,143.46,44.3964]
[1719590603604,7.4315,143.58,143.46,37.4262]
[1719590604102,7.4315,143.58,143.47,7.003]
[1719590604304,20.83,143.62,143.47,7.003]
[1719590604305,20.0,143.57,143.47,7.003]
[1719590604510,20.83,143.6,143.47,7.003]
[1719590604695,20.0,143.59,143.46,20.0]
[1719590604900,40.83,143.59,143.46,20.0]
[1719590605400,40.83,143.59,143.49,6.9686]
[1719590605401,20.0,143.59,143.49,6.9686]
[1719590605722,19.6715346,143.68,143.51,7.003]
[1719590606012,7.24243606,143.66,143.53,13.9698]
[1719590606222,19.6715346,143.68,143.52,20.0]
[1719590606390,20.83,143.67,143.52,20.0]
[1719590606588,20.83,143.67,143.5,20.0]
[1719590606812,20.83,143.67,143.48,18.368]
[1719590607000,20.83,143.67,143.5,6.9683]
[1719590607201,20.83,143.67,143.51,26.9681]
[1719590607704,20.83,143.65,143.51,20.0]
[1719590607908,20.83,143.63,143.52,0.50109152]
[1719590608081,20.83,143.63,143.48,18.368]
[1719590608082,20.83,143.61,143.49,20.0]
[1719590608281,20.0,143.64,143.49,20.0]
[1719590608282,20.83,143.59,143.49,20.0]
[1719590608500,20.83,143.63,143.48,18.368]
[1719590608709,20.0,143.62,143.49,6.969]
[1719590609293,20.0,143.62,143.48,118.368]
[1719590609294,20.83,143.61,143.48,18.368]
[1719590609508,40.83,143.6,143.48,18.368]
[1719590609713,40.83,143.6,143.49,7.003]
[1719590610017,40.83,143.6,143.45,6.971]
[1719590610184,40.83,143.6,143.46,0.52291287]
[1719590610392,20.0,143.6,143.47,3.00910999]
[1719590610615,20.83,143.64,143.48,7.49296344]
[1719590610919,20.83,143.64,143.48,7.49306344]
[1719590611120,20.83,143.62,143.49,17.9457573]
[1719590611283,40.83,143.61,143.49,17.9457573]
[1719590611489,40.83,143.61,143.47,3.00910999]
[1719590611490,20.0,143.6,143.47,3.00910999]
[1719590611787,40.83,143.6,143.48,7.003]
[1719590612213,40.83,143.6,143.47,3.00910999]
[1719590612613,20.83,143.58,143.48,7.003]
[1719590612814,20.0,143.57,143.47,3.00910999]
[1719590613321,20.0,143.57,143.47,103.00910999]
[1719590613520,20.0,143.64,143.47,3.00910999]
[1719590613684,20.0,143.64,143.48,7.003]
[1719590613887,20.0,143.64,143.47,3.00910999]
[1719590613888,20.83,143.63,143.47,3.00910999]
[1719590614112,20.83,143.61,143.47,3.00910999]
[1719590614413,20.83,143.59,143.47,3.00910999]
[1719590614712,20.83,143.55,143.47,3.00910999]
[1719590614929,20.83,143.53,143.47,3.00910999]
[1719590615117,40.83,143.52,143.47,3.00910999]
[1719590615320,20.83,143.52,143.47,3.00910999]
[1719590615493,18.33,143.52,143.47,3.00910999]
[1719590615899,20.83,143.53,143.47,3.00910999]
[1719590616109,20.0,143.52,143.47,3.00910999]
[1719590616789,7.24561323,143.54,143.41,20.0]
[1719590616992,40.83,143.53,143.42,7.003]
[1719590617193,20.0,143.53,143.43,3.00994917]
[1719590617393,7.8411,143.56,143.44,6.9715]
[1719590617606,7.5784,143.61,143.45,6.9707]
[1719590617822,7.5784,143.61,143.44,17.4281]
[1719590617823,14.8211158,143.61,143.46,20.0]
[1719590618122,20.83,143.6,143.46,20.0]
[1719590618311,20.83,143.6,143.47,1.13908262]
[1719590618621,20.83,143.58,143.43,20.0]
[1719590618825,20.83,143.56,143.36,144.98]
[1719590619025,20.83,143.56,143.41,17.4316]
[1719590619322,20.83,143.56,143.43,6.972]
[1719590619526,20.83,143.56,143.41,17.4316]
[1719590619527,20.83,143.56,143.42,6.9725]
[1719590619706,40.83,143.55,143.42,6.9725]
[1719590619901,20.83,143.57,143.43,17.4293]
[1719590620111,20.83,143.57,143.43,20.43924917]
[1719590620301,20.83,143.57,143.44,20.0]
[1719590620507,20.83,143.57,143.43,3.00994917]
[1719590620711,14.8211158,143.61,143.46,6.9705]
[1719590620906,20.83,143.6,143.45,6.9709]
[1719590621105,20.83,143.6,143.47,6.9699]
[1719590621315,20.83,143.6,143.46,124.3963]
[1719590621527,20.83,143.6,143.47,20.0]
[1719590621710,20.83,143.61,143.47,29.97900999]
[1719590621914,20.0,143.6,143.47,29.97900999]
[1719590622130,40.83,143.6,143.47,23.00910999]
[1719590622306,40.83,143.6,143.47,3.00910999]
[1719590623525,20.0,143.6,143.47,23.00910999]
[1719590623720,40.83,143.61,143.47,23.00910999]
[1719590623904,3.0189031,143.6,143.48,24.3931]
[1719590624113,20.0,143.61,143.49,20.0]
[1719590624321,3.01882788,143.6,143.48,7.003]
[1719590624617,20.83,143.59,143.49,20.0]
[1719590625024,20.83,143.6,143.47,3.00910999]
[1719590625224,43.84899567,143.59,143.47,3.00910999]
[1719590625423,43.84899567,143.58,143.47,3.00910999]
[1719590625626,20.83,143.58,143.48,7.003]
[1719590625926,20.83,143.58,143.47,3.00910999]
[1719590626107,20.0,143.61,143.1,69.8766]
[1719590626108,20.83,143.56,143.41,100.0]
[1719590626321,40.83,143.55,143.43,17.4299]
[1719590626618,20.83,143.55,143.42,3.01015904]
[1719590627003,20.0,143.54,143.42,3.01015904]
[1719590627211,40.83,143.54,143.42,3.01015904]
[1719590627535,20.83,143.52,143.39,26.3436]
[1719590627834,20.0,143.54,143.41,24.4048]
[1719590628006,20.0,143.54,143.42,6.9724]
[1719590628208,20.0,143.54,143.41,24.4047]
[1719590628209,40.83,143.54,143.41,24.4047]
[1719590628421,20.83,143.54,143.41,24.4047]
[1719590628617,140.83,143.58,143.4,9.98397887]